[Event "Titled Tuesday Blitz March 21 Late 2023"]
[White "Wieczorek, Oskar"]
[Black "Krzywda, Andrzej"]
[WhiteFideId "1133950"]
[BlackFideId "1114565"]
[WhiteElo "2418"]
[BlackElo "2155"]
[Result "1-0"]
[Round "02"]
[TimeControl "180+2"]
[Date "2023.03.21"]
[WhiteClock "0:00:04"]
[BlackClock "0:00:01"]

1. e4 {[%clk 0:02:51]}  e5 {[%clk 0:02:41]} 2. Nf3 {[%clk 0:02:48]}  Nf6 {[%clk 0:02:41]} 3. Nc3 {[%clk 0:02:49]}  Bb4 {[%clk 0:02:41]} 4. Bd3 {[%clk 0:02:46]}  d6 {[%clk 0:02:35]} 5. O-O {[%clk 0:02:47]}  O-O {[%clk 0:02:34]} 6. a3 {[%clk 0:02:28]}  Ba5 {[%clk 0:02:30]} 7. b4 {[%clk 0:02:22]}  Bb6 {[%clk 0:02:30]} 8. h3 {[%clk 0:02:23]}  Nc6 {[%clk 0:02:21]} 9. Bb2 {[%clk 0:02:14]}  a6 {[%clk 0:02:18]} 10. Bc4 {[%clk 0:02:10]}  Be6 {[%clk 0:02:16]} 11. Bxe6 {[%clk 0:01:35]}  fxe6 {[%clk 0:02:15]} 12. d3 {[%clk 0:01:36]}  Qe8 {[%clk 0:02:13]} 13. Ne2 {[%clk 0:01:33]}  Nh5 {[%clk 0:02:10]} 14. Nh2 {[%clk 0:01:25]}  Qg6 {[%clk 0:02:03]} 15. Ng4 {[%clk 0:01:13]}  Rf7 {[%clk 0:01:58]} 16. Kh2 {[%clk 0:01:08]}  Raf8 {[%clk 0:01:58]} 17. f3 {[%clk 0:01:08]}  Ne7 {[%clk 0:01:36]} 18. d4 {[%clk 0:01:05]}  exd4 {[%clk 0:01:35]} 19. Bxd4 {[%clk 0:01:05]}  Bxd4 {[%clk 0:01:33]} 20. Qxd4 {[%clk 0:01:05]}  Kh8 {[%clk 0:01:22]} 21. c4 {[%clk 0:00:59]}  e5 {[%clk 0:01:16]} 22. Qc3 {[%clk 0:00:54]}  Nf4 {[%clk 0:01:15]} 23. Nxf4 {[%clk 0:00:54]}  Rxf4 {[%clk 0:01:16]} 24. c5 {[%clk 0:00:48]}  Nc6 {[%clk 0:01:08]} 25. cxd6 {[%clk 0:00:39]}  cxd6 {[%clk 0:01:09]} 26. Rad1 {[%clk 0:00:32]}  h5 {[%clk 0:01:05]} 27. Ne3 {[%clk 0:00:30]}  Nd4 {[%clk 0:01:05]} 28. Rxd4 {[%clk 0:00:30]}  exd4 {[%clk 0:01:06]} 29. Qxd4 {[%clk 0:00:31]}  h4 {[%clk 0:00:45]} 30. Ng4 {[%clk 0:00:31]}  Rd8 {[%clk 0:00:38]} 31. Rd1 {[%clk 0:00:25]}  Rff8 {[%clk 0:00:26]} 32. Qf2 {[%clk 0:00:23]}  Qg5 {[%clk 0:00:25]} 33. Rd5 {[%clk 0:00:23]}  Qf4+ {[%clk 0:00:25]} 34. Kh1 {[%clk 0:00:22]}  Rc8 {[%clk 0:00:25]} 35. Qxh4+ {[%clk 0:00:20]}  Kg8 {[%clk 0:00:25]} 36. Rd1 {[%clk 0:00:13]}  Rc1 {[%clk 0:00:26]} 37. Qe1 {[%clk 0:00:13]}  Rxd1 {[%clk 0:00:25]} 38. Qxd1 {[%clk 0:00:14]}  Rc8 {[%clk 0:00:25]} 39. Qb3+ {[%clk 0:00:06]}  Kh8 {[%clk 0:00:20]} 40. Kg1 {[%clk 0:00:06]}  Qc1+ {[%clk 0:00:17]} 41. Kh2 {[%clk 0:00:05]}  Qf4+ {[%clk 0:00:18]} 42. Kg1 {[%clk 0:00:05]}  Qc1+ {[%clk 0:00:15]} 43. Kf2 {[%clk 0:00:06]}  Qd2+ {[%clk 0:00:12]} 44. Kg3 {[%clk 0:00:05]}  Qe1+ {[%clk 0:00:10]} 45. Kh2 {[%clk 0:00:06]}  Qd2 {[%clk 0:00:10]} 46. Qf7 {[%clk 0:00:06]}  Qg5 {[%clk 0:00:09]} 47. f4 {[%clk 0:00:03]}  Qb5 {[%clk 0:00:07]} 48. Qe6 {[%clk 0:00:02]}  Re8 {[%clk 0:00:06]} 49. Qg6 {[%clk 0:00:02]}  Qc6 {[%clk 0:00:05]} 50. f5 {[%clk 0:00:02]}  Qd7 {[%clk 0:00:04]} 51. Qh5+ {[%clk 0:00:02]}  Kg8 {[%clk 0:00:04]} 52. Qg6 {[%clk 0:00:03]}  Qe7 {[%clk 0:00:05]} 53. f6 {[%clk 0:00:03]}  Qf7 {[%clk 0:00:03]} 54. Nh6+ {[%clk 0:00:03]}  Kh8 {[%clk 0:00:02]} 55. Qxf7 {[%clk 0:00:04]}  Rxe4 {[%clk 0:00:01]} 56. Qxg7# {[%clk 0:00:04]} 1-0


[Site "https://www.chess.com"]

[Event "Titled Tuesday Blitz March 21 Late 2023"]
[White "drdaro"]
[Black "Pinheiro, Iung Alicio de O."]
[BlackFideId "2104350"]
[WhiteElo "2371"]
[BlackElo "2283"]
[Result "1-0"]
[Round "02"]
[TimeControl "180+2"]
[Date "2023.03.21"]
[WhiteClock "0:00:13"]
[BlackClock "0:00:05"]

1. d4 {[%clk 0:02:52]}  Nf6 {[%clk 0:02:59]} 2. Qd3 {[%clk 0:02:52]}  d5 {[%clk 0:02:55]} 3. Nd2 {[%clk 0:02:52]}  c5 {[%clk 0:02:49]} 4. dxc5 {[%clk 0:02:52]}  Nc6 {[%clk 0:02:44]} 5. Ngf3 {[%clk 0:02:49]}  e5 {[%clk 0:02:23]} 6. e4 {[%clk 0:02:49]}  d4 {[%clk 0:02:14]} 7. Nb3 {[%clk 0:02:32]}  Bxc5 {[%clk 0:01:50]} 8. Nxe5 {[%clk 0:02:00]}  O-O {[%clk 0:01:20]} 9. Nxc6 {[%clk 0:01:48]}  bxc6 {[%clk 0:01:18]} 10. Bg5 {[%clk 0:01:36]}  Bb4+ {[%clk 0:01:10]} 11. Nd2 {[%clk 0:01:25]}  h6 {[%clk 0:01:05]} 12. Bh4 {[%clk 0:01:18]}  g5 {[%clk 0:01:01]} 13. Bg3 {[%clk 0:01:18]}  Nxe4 {[%clk 0:00:47]} 14. O-O-O {[%clk 0:01:13]}  Nxd2 {[%clk 0:00:44]} 15. Rxd2 {[%clk 0:01:14]}  Bxd2+ {[%clk 0:00:43]} 16. Qxd2 {[%clk 0:01:14]}  Qf6 {[%clk 0:00:41]} 17. Bd3 {[%clk 0:01:13]}  c5 {[%clk 0:00:35]} 18. h4 {[%clk 0:01:12]}  g4 {[%clk 0:00:26]} 19. Be4 {[%clk 0:01:09]}  Bf5 {[%clk 0:00:24]} 20. Qf4 {[%clk 0:01:00]}  Rae8 {[%clk 0:00:17]} 21. Bxf5 {[%clk 0:00:44]}  Kh8 {[%clk 0:00:16]} 22. Bxg4 {[%clk 0:00:38]}  Qg7 {[%clk 0:00:14]} 23. h5 {[%clk 0:00:33]}  f5 {[%clk 0:00:14]} 24. Bf3 {[%clk 0:00:32]}  Re7 {[%clk 0:00:13]} 25. Bh4 {[%clk 0:00:29]}  Re6 {[%clk 0:00:13]} 26. Bd5 {[%clk 0:00:28]}  Re5 {[%clk 0:00:13]} 27. Bc4 {[%clk 0:00:23]}  Rfe8 {[%clk 0:00:13]} 28. Rd1 {[%clk 0:00:21]}  Re4 {[%clk 0:00:12]} 29. Qg3 {[%clk 0:00:16]}  Rg4 {[%clk 0:00:12]} 30. Qh3 {[%clk 0:00:13]}  Kh7 {[%clk 0:00:07]} 31. f3 {[%clk 0:00:12]}  Rxg2 {[%clk 0:00:05]} 32. Qxf5+ {[%clk 0:00:12]}  Kh8 {[%clk 0:00:05]} 33. Bf6 {[%clk 0:00:13]} 1-0


[Site "https://www.chess.com"]

[Event "Titled Tuesday Blitz March 21 Late 2023"]
[White "crosky"]
[Black "Manukyan, Sargis V."]
[BlackFideId "13303465"]
[WhiteElo "2352"]
[BlackElo "2236"]
[Result "0-1"]
[Round "02"]
[TimeControl "180+2"]
[Date "2023.03.21"]
[WhiteClock "0:00:03"]
[BlackClock "0:00:04"]

1. c4 {[%clk 0:03:00]}  Nf6 {[%clk 0:02:57]} 2. Nc3 {[%clk 0:03:01]}  g6 {[%clk 0:02:57]} 3. e4 {[%clk 0:03:01]}  d6 {[%clk 0:02:55]} 4. d4 {[%clk 0:03:01]}  c5 {[%clk 0:02:55]} 5. Be2 {[%clk 0:03:02]}  cxd4 {[%clk 0:02:55]} 6. Qxd4 {[%clk 0:03:02]}  Nc6 {[%clk 0:02:56]} 7. Qd2 {[%clk 0:02:58]}  Bg7 {[%clk 0:02:56]} 8. b3 {[%clk 0:02:59]}  Nxe4 {[%clk 0:02:54]} 9. Nxe4 {[%clk 0:02:59]}  Bxa1 {[%clk 0:02:54]} 10. Nf3 {[%clk 0:03:00]}  Bg7 {[%clk 0:02:53]} 11. h4 {[%clk 0:02:59]}  h5 {[%clk 0:02:51]} 12. Bb2 {[%clk 0:02:58]}  O-O {[%clk 0:02:46]} 13. Nfg5 {[%clk 0:02:55]}  Bf5 {[%clk 0:02:37]} 14. g4 {[%clk 0:02:48]}  Bxe4 {[%clk 0:02:30]} 15. Nxe4 {[%clk 0:02:45]}  f5 {[%clk 0:02:19]} 16. Ng5 {[%clk 0:02:42]}  Qa5 {[%clk 0:02:07]} 17. Qxa5 {[%clk 0:02:21]}  Nxa5 {[%clk 0:02:06]} 18. Bxg7 {[%clk 0:02:22]}  Kxg7 {[%clk 0:02:04]} 19. Ne6+ {[%clk 0:02:23]}  Kf6 {[%clk 0:01:57]} 20. Nxf8 {[%clk 0:02:24]}  Rxf8 {[%clk 0:01:57]} 21. gxh5 {[%clk 0:02:25]}  gxh5 {[%clk 0:01:53]} 22. Bxh5 {[%clk 0:02:26]}  Nc6 {[%clk 0:01:51]} 23. Bf3 {[%clk 0:02:21]}  Rh8 {[%clk 0:01:45]} 24. Kd2 {[%clk 0:02:01]}  e5 {[%clk 0:01:41]} 25. Bd5 {[%clk 0:01:56]}  Rh7 {[%clk 0:01:37]} 26. f4 {[%clk 0:01:48]}  exf4 {[%clk 0:01:35]} 27. Bxc6 {[%clk 0:01:39]}  bxc6 {[%clk 0:01:35]} 28. Ke2 {[%clk 0:01:39]}  Re7+ {[%clk 0:01:13]} 29. Kf3 {[%clk 0:01:37]}  Re4 {[%clk 0:01:12]} 30. Rd1 {[%clk 0:01:26]}  Ke5 {[%clk 0:01:10]} 31. h5 {[%clk 0:01:07]}  Re3+ {[%clk 0:01:09]} 32. Kg2 {[%clk 0:01:08]}  Rg3+ {[%clk 0:01:08]} 33. Kh2 {[%clk 0:01:02]}  Rg5 {[%clk 0:01:08]} 34. Re1+ {[%clk 0:00:50]}  Kf6 {[%clk 0:01:07]} 35. Rd1 {[%clk 0:00:49]}  Rxh5+ {[%clk 0:01:07]} 36. Kg2 {[%clk 0:00:50]}  Ke5 {[%clk 0:01:06]} 37. Re1+ {[%clk 0:00:46]}  Kf6 {[%clk 0:01:06]} 38. Kf3 {[%clk 0:00:43]}  Rh4 {[%clk 0:00:59]} 39. Rd1 {[%clk 0:00:42]}  Ke6 {[%clk 0:00:57]} 40. Re1+ {[%clk 0:00:42]}  Kd7 {[%clk 0:00:58]} 41. Rg1 {[%clk 0:00:40]}  Rh7 {[%clk 0:00:51]} 42. Kxf4 {[%clk 0:00:38]}  Rf7 {[%clk 0:00:51]} 43. Rg6 {[%clk 0:00:38]}  a5 {[%clk 0:00:49]} 44. Rg5 {[%clk 0:00:36]}  Ke6 {[%clk 0:00:49]} 45. Rg6+ {[%clk 0:00:36]}  Rf6 {[%clk 0:00:49]} 46. Rg8 {[%clk 0:00:35]}  Rh6 {[%clk 0:00:46]} 47. Re8+ {[%clk 0:00:32]}  Kd7 {[%clk 0:00:44]} 48. Rf8 {[%clk 0:00:28]}  Rh2 {[%clk 0:00:42]} 49. Rxf5 {[%clk 0:00:18]}  Rxa2 {[%clk 0:00:38]} 50. Rf7+ {[%clk 0:00:16]}  Ke6 {[%clk 0:00:33]} 51. Ra7 {[%clk 0:00:17]}  Ra3 {[%clk 0:00:28]} 52. Ke4 {[%clk 0:00:16]}  c5 {[%clk 0:00:20]} 53. Ra6 {[%clk 0:00:16]}  Rxb3 {[%clk 0:00:16]} 54. Rxa5 {[%clk 0:00:16]}  Rc3 {[%clk 0:00:16]} 55. Ra4 {[%clk 0:00:16]}  Kd7 {[%clk 0:00:16]} 56. Kd5 {[%clk 0:00:15]}  Rd3+ {[%clk 0:00:16]} 57. Ke4 {[%clk 0:00:15]}  Rd4+ {[%clk 0:00:16]} 58. Ke3 {[%clk 0:00:16]}  Kc6 {[%clk 0:00:16]} 59. Ra6+ {[%clk 0:00:15]}  Kd7 {[%clk 0:00:16]} 60. Ra4 {[%clk 0:00:15]}  Ke6 {[%clk 0:00:16]} 61. Kf3 {[%clk 0:00:14]}  Ke5 {[%clk 0:00:16]} 62. Ke3 {[%clk 0:00:14]}  Kf5 {[%clk 0:00:16]} 63. Kf3 {[%clk 0:00:11]}  Kf6 {[%clk 0:00:17]} 64. Ke3 {[%clk 0:00:11]}  Ke5 {[%clk 0:00:17]} 65. Kf3 {[%clk 0:00:11]}  Rd3+ {[%clk 0:00:15]} 66. Ke2 {[%clk 0:00:11]}  Kd4 {[%clk 0:00:15]} 67. Ke1 {[%clk 0:00:10]}  Rc3 {[%clk 0:00:12]} 68. Ra6 {[%clk 0:00:09]}  Ke5 {[%clk 0:00:12]} 69. Ra4 {[%clk 0:00:08]}  Rc2 {[%clk 0:00:12]} 70. Kd1 {[%clk 0:00:09]}  Rh2 {[%clk 0:00:12]} 71. Kc1 {[%clk 0:00:06]}  Kd4 {[%clk 0:00:12]} 72. Kd1 {[%clk 0:00:05]}  Kc3 {[%clk 0:00:10]} 73. Ke1 {[%clk 0:00:05]}  Kb3 {[%clk 0:00:09]} 74. Ra6 {[%clk 0:00:05]}  Rh6 {[%clk 0:00:09]} 75. Kd2 {[%clk 0:00:04]}  Kxc4 {[%clk 0:00:09]} 76. Ra4+ {[%clk 0:00:04]}  Kd5 {[%clk 0:00:09]} 77. Kc3 {[%clk 0:00:04]}  Rh3+ {[%clk 0:00:09]} 78. Kc2 {[%clk 0:00:04]}  Rh2+ {[%clk 0:00:09]} 79. Kc3 {[%clk 0:00:04]}  Rh3+ {[%clk 0:00:10]} 80. Kc2 {[%clk 0:00:04]}  c4 {[%clk 0:00:10]} 81. Ra5+ {[%clk 0:00:04]}  Kd4 {[%clk 0:00:10]} 82. Ra6 {[%clk 0:00:04]}  d5 {[%clk 0:00:11]} 83. Ra8 {[%clk 0:00:04]}  Rh2+ {[%clk 0:00:11]} 84. Kd1 {[%clk 0:00:05]}  Kd3 {[%clk 0:00:11]} 85. Kc1 {[%clk 0:00:05]}  d4 {[%clk 0:00:11]} 86. Rg8 {[%clk 0:00:04]}  c3 {[%clk 0:00:11]} 87. Rg3+ {[%clk 0:00:04]}  Kc4 {[%clk 0:00:12]} 88. Rg4 {[%clk 0:00:03]}  Rf2 {[%clk 0:00:09]} 89. Rh4 {[%clk 0:00:02]}  Re2 {[%clk 0:00:08]} 90. Rg4 {[%clk 0:00:03]}  Kd3 {[%clk 0:00:08]} 91. Rg3+ {[%clk 0:00:03]}  Re3 {[%clk 0:00:09]} 92. Rg2 {[%clk 0:00:03]}  Kc4 {[%clk 0:00:09]} 93. Rg4 {[%clk 0:00:03]}  Re2 {[%clk 0:00:09]} 94. Rg8 {[%clk 0:00:03]}  Ra2 {[%clk 0:00:08]} 95. Rc8+ {[%clk 0:00:03]}  Kd3 {[%clk 0:00:07]} 96. Kb1 {[%clk 0:00:03]}  Rb2+ {[%clk 0:00:06]} 97. Kc1 {[%clk 0:00:03]}  Rh2 {[%clk 0:00:06]} 98. Kb1 {[%clk 0:00:03]}  Kd2 {[%clk 0:00:04]} 99. Rd8 {[%clk 0:00:03]}  d3 {[%clk 0:00:04]} 100. Ka2 {[%clk 0:00:02]}  c2 {[%clk 0:00:04]} 101. Kb3 {[%clk 0:00:03]}  c1=Q {[%clk 0:00:04]} 102. Rxd3+ {[%clk 0:00:03]}  Kxd3 {[%clk 0:00:04]} 0-1


[Site "https://www.chess.com"]

[Event "Titled Tuesday Blitz March 21 Late 2023"]
[White "Abduzhaparov"]
[Black "Reprintsev, Alexander"]
[BlackFideId "14100541"]
[WhiteElo "2345"]
[BlackElo "2229"]
[Result "0-1"]
[Round "02"]
[TimeControl "180+2"]
[Date "2023.03.21"]
[WhiteClock "0:00:01"]
[BlackClock "0:00:48"]

1. Nf3 {[%clk 0:03:00]}  d5 {[%clk 0:02:57]} 2. c4 {[%clk 0:03:01]}  dxc4 {[%clk 0:02:57]} 3. e4 {[%clk 0:03:01]}  Nf6 {[%clk 0:02:47]} 4. e5 {[%clk 0:02:58]}  Nd5 {[%clk 0:02:44]} 5. Bxc4 {[%clk 0:02:59]}  c6 {[%clk 0:02:37]} 6. Nc3 {[%clk 0:02:56]}  Bg4 {[%clk 0:02:24]} 7. Qb3 {[%clk 0:02:42]}  Bxf3 {[%clk 0:02:20]} 8. gxf3 {[%clk 0:02:42]}  e6 {[%clk 0:02:04]} 9. Qxb7 {[%clk 0:02:42]}  Nd7 {[%clk 0:02:04]} 10. Qxc6 {[%clk 0:02:35]}  Rc8 {[%clk 0:02:00]} 11. Bxd5 {[%clk 0:02:16]}  Rxc6 {[%clk 0:01:59]} 12. Bxc6 {[%clk 0:02:17]}  Qc7 {[%clk 0:01:58]} 13. Ba4 {[%clk 0:02:07]}  Qxe5+ {[%clk 0:01:57]} 14. Kd1 {[%clk 0:02:07]}  Bb4 {[%clk 0:01:50]} 15. Re1 {[%clk 0:02:06]}  Qf4 {[%clk 0:01:40]} 16. Bc6 {[%clk 0:01:49]}  Qc7 {[%clk 0:01:29]} 17. Ba4 {[%clk 0:01:38]}  O-O {[%clk 0:01:29]} 18. a3 {[%clk 0:01:19]}  Bc5 {[%clk 0:01:25]} 19. b4 {[%clk 0:01:16]}  Bxf2 {[%clk 0:01:24]} 20. Re2 {[%clk 0:01:16]}  Bd4 {[%clk 0:01:24]} 21. Bb2 {[%clk 0:01:15]}  Nb6 {[%clk 0:01:24]} 22. Bb3 {[%clk 0:01:12]}  Bxc3 {[%clk 0:01:21]} 23. Bxc3 {[%clk 0:01:10]}  Rd8 {[%clk 0:01:19]} 24. Kc2 {[%clk 0:00:59]}  Nd5 {[%clk 0:01:17]} 25. Bxd5 {[%clk 0:00:58]}  exd5 {[%clk 0:01:13]} 26. Rae1 {[%clk 0:00:53]}  h6 {[%clk 0:01:08]} 27. Re7 {[%clk 0:00:36]}  Qc6 {[%clk 0:01:06]} 28. Kb1 {[%clk 0:00:17]}  d4 {[%clk 0:01:05]} 29. Bb2 {[%clk 0:00:17]}  Qxf3 {[%clk 0:01:01]} 30. R7e4 {[%clk 0:00:15]}  Qd3+ {[%clk 0:01:00]} 31. Ka1 {[%clk 0:00:14]}  Qxd2 {[%clk 0:01:00]} 32. R4e2 {[%clk 0:00:13]}  Qf4 {[%clk 0:00:59]} 33. Rd1 {[%clk 0:00:12]}  d3 {[%clk 0:00:58]} 34. Red2 {[%clk 0:00:12]}  Qe4 {[%clk 0:00:56]} 35. h3 {[%clk 0:00:10]}  Kh7 {[%clk 0:00:55]} 36. Rg1 {[%clk 0:00:08]}  g5 {[%clk 0:00:55]} 37. h4 {[%clk 0:00:07]}  g4 {[%clk 0:00:55]} 38. h5 {[%clk 0:00:06]}  f5 {[%clk 0:00:54]} 39. Rf1 {[%clk 0:00:04]}  Rd5 {[%clk 0:00:52]} 40. Rc1 {[%clk 0:00:03]}  Rd7 {[%clk 0:00:51]} 41. Rc6 {[%clk 0:00:01]}  Qxc6 {[%clk 0:00:48]} 0-1


[Site "https://www.chess.com"]

[Event "Titled Tuesday Blitz March 21 Late 2023"]
[White "Roebers, Eline"]
[Black "Bhavikatti, Neil"]
[WhiteFideId "1058401"]
[BlackFideId "30935024"]
[WhiteElo "2536"]
[BlackElo "2345"]
[Result "0-1"]
[Round "02"]
[TimeControl "180+2"]
[Date "2023.03.21"]
[WhiteClock "0:00:11"]
[BlackClock "0:00:14"]

1. e4 {[%clk 0:03:00]}  e5 {[%clk 0:03:00]} 2. Nf3 {[%clk 0:03:00]}  Nc6 {[%clk 0:03:00]} 3. Nc3 {[%clk 0:03:01]}  Nf6 {[%clk 0:03:00]} 4. a3 {[%clk 0:03:01]}  d6 {[%clk 0:02:31]} 5. d4 {[%clk 0:03:00]}  Bg4 {[%clk 0:02:31]} 6. d5 {[%clk 0:02:40]}  Nd4 {[%clk 0:02:31]} 7. Be3 {[%clk 0:02:33]}  Nxf3+ {[%clk 0:02:19]} 8. gxf3 {[%clk 0:02:27]}  Bh5 {[%clk 0:02:19]} 9. Rg1 {[%clk 0:02:18]}  g6 {[%clk 0:02:05]} 10. Be2 {[%clk 0:02:13]}  Be7 {[%clk 0:01:59]} 11. f4 {[%clk 0:02:12]}  Bxe2 {[%clk 0:01:59]} 12. Qxe2 {[%clk 0:02:13]}  exf4 {[%clk 0:01:58]} 13. Bxf4 {[%clk 0:02:12]}  Nh5 {[%clk 0:01:59]} 14. Be3 {[%clk 0:02:11]}  Bf6 {[%clk 0:01:57]} 15. Qb5+ {[%clk 0:02:06]}  Qd7 {[%clk 0:01:55]} 16. Qxb7 {[%clk 0:02:04]}  O-O {[%clk 0:01:56]} 17. Qb4 {[%clk 0:01:52]}  Rab8 {[%clk 0:01:53]} 18. Qc4 {[%clk 0:01:51]}  Rxb2 {[%clk 0:01:52]} 19. Bd4 {[%clk 0:01:42]}  Rxc2 {[%clk 0:01:45]} 20. Qd3 {[%clk 0:01:31]}  Rb2 {[%clk 0:01:34]} 21. Ne2 {[%clk 0:01:19]}  Bxd4 {[%clk 0:01:31]} 22. Nxd4 {[%clk 0:01:20]}  Rfb8 {[%clk 0:01:23]} 23. Rc1 {[%clk 0:01:10]}  Qa4 {[%clk 0:00:51]} 24. Nc6 {[%clk 0:00:53]}  Nf4 {[%clk 0:00:47]} 25. Qf3 {[%clk 0:00:49]}  Re2+ {[%clk 0:00:21]} 26. Kf1 {[%clk 0:00:48]}  Rxe4 {[%clk 0:00:21]} 27. Rg4 {[%clk 0:00:21]}  Qb5+ {[%clk 0:00:20]} 28. Kg1 {[%clk 0:00:21]}  Ne2+ {[%clk 0:00:19]} 29. Kh1 {[%clk 0:00:21]}  Rxg4 {[%clk 0:00:18]} 30. Qxg4 {[%clk 0:00:16]}  Nxc1 {[%clk 0:00:17]} 31. Nxb8 {[%clk 0:00:15]}  Qxb8 {[%clk 0:00:16]} 32. Qc4 {[%clk 0:00:13]}  Nb3 {[%clk 0:00:15]} 33. h4 {[%clk 0:00:11]}  Nc5 {[%clk 0:00:14]} 34. h5 {[%clk 0:00:11]}  Qb1+ {[%clk 0:00:14]} 0-1


[Site "https://www.chess.com"]

[Event "Titled Tuesday Blitz March 21 Late 2023"]
[White "Martic, Ivan"]
[Black "Garcia Cuenca, Victor"]
[WhiteFideId "929301"]
[BlackFideId "2250829"]
[WhiteElo "2360"]
[BlackElo "2329"]
[Result "1/2-1/2"]
[Round "02"]
[TimeControl "180+2"]
[Date "2023.03.21"]
[WhiteClock "0:01:11"]
[BlackClock "0:00:10"]

1. e4 {[%clk 0:02:57]}  c6 {[%clk 0:02:58]} 2. d4 {[%clk 0:02:56]}  d5 {[%clk 0:02:59]} 3. e5 {[%clk 0:02:56]}  g6 {[%clk 0:02:58]} 4. h4 {[%clk 0:02:52]}  h5 {[%clk 0:02:54]} 5. Nd2 {[%clk 0:02:44]}  Nh6 {[%clk 0:02:54]} 6. Nb3 {[%clk 0:02:43]}  b6 {[%clk 0:02:48]} 7. c4 {[%clk 0:02:40]}  dxc4 {[%clk 0:02:43]} 8. Bxc4 {[%clk 0:02:41]}  Ba6 {[%clk 0:02:42]} 9. Bxa6 {[%clk 0:02:40]}  Nxa6 {[%clk 0:02:42]} 10. Nf3 {[%clk 0:02:40]}  Nf5 {[%clk 0:02:40]} 11. e6 {[%clk 0:02:39]}  f6 {[%clk 0:02:32]} 12. O-O {[%clk 0:02:38]}  Nc7 {[%clk 0:02:31]} 13. Re1 {[%clk 0:02:38]}  Qd5 {[%clk 0:02:14]} 14. Qe2 {[%clk 0:02:34]}  Bh6 {[%clk 0:02:14]} 15. Bxh6 {[%clk 0:02:33]}  Rxh6 {[%clk 0:02:10]} 16. Rac1 {[%clk 0:02:32]}  Rd8 {[%clk 0:02:08]} 17. Rc3 {[%clk 0:02:25]}  Rd6 {[%clk 0:02:06]} 18. Qc2 {[%clk 0:02:22]}  Nxe6 {[%clk 0:01:51]} 19. Rc1 {[%clk 0:02:20]}  Nexd4 {[%clk 0:01:11]} 20. Nbxd4 {[%clk 0:02:19]}  Nxd4 {[%clk 0:01:12]} 21. Nxd4 {[%clk 0:02:19]}  Qxd4 {[%clk 0:01:13]} 22. Rxc6 {[%clk 0:02:19]}  Rxc6 {[%clk 0:01:08]} 23. Qxc6+ {[%clk 0:02:20]}  Kf7 {[%clk 0:01:08]} 24. g3 {[%clk 0:02:15]}  Rh8 {[%clk 0:01:07]} 25. Re1 {[%clk 0:02:12]}  Re8 {[%clk 0:01:06]} 26. Qe6+ {[%clk 0:02:06]}  Kf8 {[%clk 0:01:04]} 27. Re2 {[%clk 0:02:04]}  Qd6 {[%clk 0:00:49]} 28. Qe4 {[%clk 0:01:59]}  Kf7 {[%clk 0:00:49]} 29. Qc4+ {[%clk 0:01:59]}  e6 {[%clk 0:00:46]} 30. Qb3 {[%clk 0:01:51]}  Re7 {[%clk 0:00:44]} 31. Qe3 {[%clk 0:01:49]}  Rd7 {[%clk 0:00:43]} 32. Kh2 {[%clk 0:01:46]}  e5 {[%clk 0:00:42]} 33. Qh6 {[%clk 0:01:46]}  Qd3 {[%clk 0:00:30]} 34. Qh7+ {[%clk 0:01:39]}  Ke6 {[%clk 0:00:29]} 35. Qg8+ {[%clk 0:01:39]}  Kf5 {[%clk 0:00:29]} 36. Re3 {[%clk 0:01:35]}  Qf1 {[%clk 0:00:28]} 37. Rf3+ {[%clk 0:01:30]}  Ke4 {[%clk 0:00:23]} 38. Qb3 {[%clk 0:01:28]}  Rd1 {[%clk 0:00:17]} 39. Re3+ {[%clk 0:01:22]}  Kf5 {[%clk 0:00:15]} 40. Qc2+ {[%clk 0:01:22]}  Ke6 {[%clk 0:00:14]} 41. Qc8+ {[%clk 0:01:21]}  Ke7 {[%clk 0:00:09]} 42. Qb7+ {[%clk 0:01:21]}  Ke6 {[%clk 0:00:09]} 43. Qc6+ {[%clk 0:01:20]}  Ke7 {[%clk 0:00:08]} 44. Qb7+ {[%clk 0:01:18]}  Ke6 {[%clk 0:00:08]} 45. Qc8+ {[%clk 0:01:18]}  Ke7 {[%clk 0:00:09]} 46. Qc7+ {[%clk 0:01:15]}  Ke6 {[%clk 0:00:09]} 47. Qc6+ {[%clk 0:01:13]}  Ke7 {[%clk 0:00:09]} 48. Qc7+ {[%clk 0:01:11]}  Ke6 {[%clk 0:00:10]} 49. Qc6+ {[%clk 0:01:11]} 1/2-1/2


[Site "https://www.chess.com"]

[Event "Titled Tuesday Blitz March 21 Late 2023"]
[White "Korkmaz, Necmettin"]
[Black "Jiganchine, Roman"]
[WhiteFideId "6303285"]
[BlackFideId "2603667"]
[WhiteElo "2097"]
[BlackElo "2314"]
[Result "1-0"]
[Round "02"]
[TimeControl "180+2"]
[Date "2023.03.21"]
[WhiteClock "0:00:21"]
[BlackClock "0:00:02"]

1. e4 {[%clk 0:03:00]}  c6 {[%clk 0:02:59]} 2. d4 {[%clk 0:02:57]}  d5 {[%clk 0:03:00]} 3. Nc3 {[%clk 0:02:56]}  dxe4 {[%clk 0:03:00]} 4. Nxe4 {[%clk 0:02:57]}  Nf6 {[%clk 0:03:00]} 5. Nxf6+ {[%clk 0:02:57]}  exf6 {[%clk 0:03:01]} 6. c3 {[%clk 0:02:54]}  Bd6 {[%clk 0:03:01]} 7. Bd3 {[%clk 0:02:54]}  Na6 {[%clk 0:02:59]} 8. Qc2 {[%clk 0:02:53]}  h5 {[%clk 0:02:56]} 9. Ne2 {[%clk 0:02:52]}  Nc7 {[%clk 0:02:56]} 10. O-O {[%clk 0:02:51]}  Nd5 {[%clk 0:02:54]} 11. Re1 {[%clk 0:02:51]}  O-O {[%clk 0:02:48]} 12. a3 {[%clk 0:02:49]}  Re8 {[%clk 0:02:17]} 13. c4 {[%clk 0:02:44]}  Nc7 {[%clk 0:02:17]} 14. Be3 {[%clk 0:02:39]}  b5 {[%clk 0:02:13]} 15. cxb5 {[%clk 0:02:14]}  cxb5 {[%clk 0:02:12]} 16. Nc3 {[%clk 0:02:14]}  Rb8 {[%clk 0:02:01]} 17. Rad1 {[%clk 0:02:09]}  Bg4 {[%clk 0:01:53]} 18. f3 {[%clk 0:02:05]}  Be6 {[%clk 0:01:48]} 19. d5 {[%clk 0:01:40]}  Bd7 {[%clk 0:01:35]} 20. Bxa7 {[%clk 0:01:39]}  Rb7 {[%clk 0:01:28]} 21. Bf2 {[%clk 0:01:34]}  b4 {[%clk 0:01:28]} 22. Ne4 {[%clk 0:01:32]}  b3 {[%clk 0:01:22]} 23. Qd2 {[%clk 0:01:19]}  Be5 {[%clk 0:00:59]} 24. d6 {[%clk 0:01:18]}  Ne6 {[%clk 0:00:52]} 25. Bb1 {[%clk 0:01:11]}  Bf4 {[%clk 0:00:41]} 26. Qd3 {[%clk 0:01:10]}  f5 {[%clk 0:00:39]} 27. Nc5 {[%clk 0:01:04]}  Nxc5 {[%clk 0:00:36]} 28. Bxc5 {[%clk 0:01:05]}  Bb5 {[%clk 0:00:34]} 29. Qxf5 {[%clk 0:01:03]}  Rxe1+ {[%clk 0:00:11]} 30. Rxe1 {[%clk 0:01:02]}  Bxh2+ {[%clk 0:00:11]} 31. Kh1 {[%clk 0:00:52]}  g6 {[%clk 0:00:11]} 32. Qe4 {[%clk 0:00:43]}  Bg3 {[%clk 0:00:09]} 33. Rd1 {[%clk 0:00:42]}  Kg7 {[%clk 0:00:08]} 34. Bd4+ {[%clk 0:00:37]}  Kh7 {[%clk 0:00:05]} 35. Be5 {[%clk 0:00:34]}  Bc6 {[%clk 0:00:04]} 36. Qd4 {[%clk 0:00:32]}  Rb4 {[%clk 0:00:03]} 37. Qxb4 {[%clk 0:00:22]}  Bxe5 {[%clk 0:00:04]} 38. Qc4 {[%clk 0:00:20]}  Qg5 {[%clk 0:00:03]} 39. Qxf7+ {[%clk 0:00:19]}  Kh6 {[%clk 0:00:03]} 40. Qxg6+ {[%clk 0:00:19]}  Qxg6 {[%clk 0:00:03]} 41. Bxg6 {[%clk 0:00:20]}  Kxg6 {[%clk 0:00:03]} 42. d7 {[%clk 0:00:21]}  Bf6 {[%clk 0:00:02]} 43. d8=Q {[%clk 0:00:20]}  Bxd8 {[%clk 0:00:02]} 44. Rxd8 {[%clk 0:00:21]} 1-0


[Site "https://www.chess.com"]